[Event "Early-Titled-Tuesday-Blitz-March-05-2024"]
[Site "Chess.com"]
[Date "2024.03.05"]
[Round "6"]
[White "HelvertHernandez"]
[Black "thebeast2900"]
[Result "0-1"]
[WhiteElo "2023"]
[BlackElo "2314"]
[TimeControl "180+1"]
[EndTime "9:09:47 PST"]
[Termination "thebeast2900 won by resignation"]

1. e4 {[%clk 0:02:21.6]} 1... c5 {[%clk 0:02:58.8]} 2. Nf3 {[%clk 0:02:21]} 2...
Nc6 {[%clk 0:02:57.2]} 3. d4 {[%clk 0:02:20.9]} 3... cxd4 {[%clk 0:02:57.2]} 4.
Nxd4 {[%clk 0:02:21.6]} 4... g6 {[%clk 0:02:57.7]} 5. Nc3 {[%clk 0:02:21.6]}
5... Bg7 {[%clk 0:02:57.2]} 6. Be3 {[%clk 0:02:21.7]} 6... Nf6 {[%clk
0:02:56.1]} 7. Bc4 {[%clk 0:02:18.2]} 7... O-O {[%clk 0:02:55.3]} 8. Bb3 {[%clk
0:02:16.1]} 8... Re8 {[%clk 0:02:47.9]} 9. f3 {[%clk 0:01:58]} 9... d5 {[%clk
0:02:47.5]} 10. Nxc6 {[%clk 0:01:54.9]} 10... bxc6 {[%clk 0:02:46.8]} 11. exd5
{[%clk 0:01:51.3]} 11... cxd5 {[%clk 0:02:43.1]} 12. Nxd5 {[%clk 0:01:29.7]}
12... Nxd5 {[%clk 0:02:30.7]} 13. Qxd5 {[%clk 0:01:28.7]} 13... Qxd5 {[%clk
0:02:23.4]} 14. Bxd5 {[%clk 0:01:27.6]} 14... Rb8 {[%clk 0:02:01.1]} 15. Bb3
{[%clk 0:01:09]} 15... Bxb2 {[%clk 0:01:59.2]} 16. Rd1 {[%clk 0:01:04.9]} 16...
Bc3+ {[%clk 0:01:53.8]} 17. Kf2 {[%clk 0:01:04.5]} 17... a5 {[%clk 0:01:46.9]}
18. Rd3 {[%clk 0:01:01.6]} 18... Bb4 {[%clk 0:01:35.9]} 19. Rhd1 {[%clk
0:00:57.2]} 19... Bf5 {[%clk 0:01:33.9]} 20. Rd5 {[%clk 0:00:45.9]} 20... Rec8
{[%clk 0:01:27.7]} 21. c4 {[%clk 0:00:41]} 21... Be6 {[%clk 0:01:22.5]} 22. R5d4
{[%clk 0:00:20.1]} 22... f5 {[%clk 0:01:06.7]} 23. g3 {[%clk 0:00:19.7]} 23...
Kf7 {[%clk 0:01:01.4]} 24. f4 {[%clk 0:00:19.9]} 24... Bc5 {[%clk 0:00:58.3]}
25. R4d3 {[%clk 0:00:19.6]} 25... Bxe3+ {[%clk 0:00:56.1]} 26. Rxe3 {[%clk
0:00:20.4]} 26... Bxc4 {[%clk 0:00:55.3]} 27. Bxc4+ {[%clk 0:00:20.7]} 27...
Rxc4 {[%clk 0:00:54.6]} 28. Rd7 {[%clk 0:00:21.4]} 28... Re4 {[%clk 0:00:49.3]}
29. Rxe4 {[%clk 0:00:20.5]} 29... fxe4 {[%clk 0:00:50.2]} 30. Ke3 {[%clk
0:00:20.8]} 30... Rb2 {[%clk 0:00:50.1]} 31. Kxe4 {[%clk 0:00:20.4]} 31... Rxa2
{[%clk 0:00:48.9]} 32. Ra7 {[%clk 0:00:21.1]} 32... a4 {[%clk 0:00:46.5]} 33. h4
{[%clk 0:00:19.9]} 33... h5 {[%clk 0:00:45]} 34. f5 {[%clk 0:00:18.6]} 34... Ra3
{[%clk 0:00:22.9]} 35. fxg6+ {[%clk 0:00:17.9]} 35... Kxg6 {[%clk 0:00:23.8]}
36. Rxe7 {[%clk 0:00:17.8]} 36... Rxg3 {[%clk 0:00:23.9]} 37. Ra7 {[%clk
0:00:17.3]} 37... Rg4+ {[%clk 0:00:23.7]} 38. Ke5 {[%clk 0:00:16.6]} 38... Rxh4
{[%clk 0:00:24.1]} 39. Ra6+ {[%clk 0:00:15.8]} 39... Kg5 {[%clk 0:00:23.8]} 40.
Ra5 {[%clk 0:00:16.1]} 40... Rb4 {[%clk 0:00:22.7]} 41. Kd5 {[%clk 0:00:13.1]}
41... Kg4 {[%clk 0:00:21.7]} 42. Kc5 {[%clk 0:00:13.4]} 42... Rf4 {[%clk
0:00:21.2]} 43. Ra8 {[%clk 0:00:12.6]} 43... h4 {[%clk 0:00:21.3]} 44. Rg8+
{[%clk 0:00:11.5]} 44... Kf3 {[%clk 0:00:21]} 45. Kd5 {[%clk 0:00:10.6]} 45...
h3 {[%clk 0:00:20.9]} 46. Ke5 {[%clk 0:00:10.5]} 46... Rg4 {[%clk 0:00:19.7]}
47. Rf8+ {[%clk 0:00:09.8]} 47... Kg2 {[%clk 0:00:19.6]} 48. Rh8 {[%clk
0:00:09.7]} 48... h2 {[%clk 0:00:19.6]} 49. Kf5 {[%clk 0:00:09.9]} 49... h1=Q
{[%clk 0:00:20.5]} 50. Rxh1 {[%clk 0:00:08.2]} 50... Kxh1 {[%clk 0:00:21]} 51.
Kxg4 {[%clk 0:00:09.1]} 51... a3 {[%clk 0:00:21.6]} 52. Kf3 {[%clk 0:00:09.7]}
52... a2 {[%clk 0:00:22.5]} 53. Ke3 {[%clk 0:00:10.6]} 53... a1=Q {[%clk
0:00:23]} 54. Kf2 {[%clk 0:00:10]} 54... Qf6+ {[%clk 0:00:22]} 0-1

[Event "Early-Titled-Tuesday-Blitz-March-05-2024"]
[Site "Chess.com"]
[Date "2024.03.05"]
[Round "6"]
[White "Kopytkin"]
[Black "chessamical"]
[Result "1-0"]
[WhiteElo "2449"]
[BlackElo "2146"]
[TimeControl "180+1"]
[EndTime "9:09:48 PST"]
[Termination "Kopytkin won on time"]

1. d4 {[%clk 0:03:00.9]} 1... Nf6 {[%clk 0:02:59.1]} 2. Bg5 {[%clk 0:02:59.4]}
2... d5 {[%clk 0:02:58.3]} 3. e3 {[%clk 0:02:59.2]} 3... c5 {[%clk 0:02:53]} 4.
c3 {[%clk 0:02:58.8]} 4... Ne4 {[%clk 0:02:51.9]} 5. Bf4 {[%clk 0:02:58.3]} 5...
Bf5 {[%clk 0:02:40.7]} 6. Qb3 {[%clk 0:02:56.5]} 6... Qd7 {[%clk 0:02:16.8]} 7.
Nf3 {[%clk 0:02:52.4]} 7... Nc6 {[%clk 0:02:15.6]} 8. Bb5 {[%clk 0:02:48.5]}
8... c4 {[%clk 0:02:12.4]} 9. Qa4 {[%clk 0:02:48.5]} 9... f6 {[%clk 0:02:08.3]}
10. b3 {[%clk 0:02:45.9]} 10... cxb3 {[%clk 0:02:01.4]} 11. axb3 {[%clk
0:02:46.8]} 11... e6 {[%clk 0:01:59.5]} 12. O-O {[%clk 0:02:45.5]} 12... g5
{[%clk 0:01:49.9]} 13. Bg3 {[%clk 0:02:43.7]} 13... h5 {[%clk 0:01:50]} 14. h4
{[%clk 0:02:29.5]} 14... g4 {[%clk 0:01:47.8]} 15. Nfd2 {[%clk 0:02:29]} 15...
Nxg3 {[%clk 0:01:47.9]} 16. fxg3 {[%clk 0:02:29.9]} 16... Bd6 {[%clk 0:01:42.8]}
17. e4 {[%clk 0:02:13.4]} 17... dxe4 {[%clk 0:01:41.8]} 18. Rxf5 {[%clk
0:02:04.2]} 18... exf5 {[%clk 0:01:39.5]} 19. d5 {[%clk 0:02:04.3]} 19... Bc5+
{[%clk 0:01:23.9]} 20. Kh2 {[%clk 0:02:04]} 20... Qxd5 {[%clk 0:01:23.6]} 21.
Na3 {[%clk 0:01:46.4]} 21... Kf8 {[%clk 0:01:19.2]} 22. Nac4 {[%clk 0:01:44.1]}
22... Ne5 {[%clk 0:01:06.4]} 23. Nxe5 {[%clk 0:01:34.5]} 23... Qxe5 {[%clk
0:01:04.6]} 24. Nc4 {[%clk 0:01:33.4]} 24... Qc7 {[%clk 0:00:57.4]} 25. Bd7
{[%clk 0:01:26.7]} 25... Bf2 {[%clk 0:00:45]} 26. Qb4+ {[%clk 0:01:16.6]} 26...
Kg7 {[%clk 0:00:44.6]} 27. Qd6 {[%clk 0:01:12.8]} 27... Bxg3+ {[%clk 0:00:30.9]}
28. Kxg3 {[%clk 0:01:08.5]} 28... Qxd6+ {[%clk 0:00:13.8]} 29. Nxd6 {[%clk
0:01:09.4]} 29... Rhd8 {[%clk 0:00:11.2]} 30. Nxf5+ {[%clk 0:01:06]} 30... Kg6
{[%clk 0:00:11.9]} 31. Be6 {[%clk 0:01:05.4]} 31... Re8 {[%clk 0:00:11.9]} 32.
Nd4 {[%clk 0:01:05.7]} 32... Rad8 {[%clk 0:00:11.4]} 33. Bf5+ {[%clk 0:01:00.2]}
33... Kf7 {[%clk 0:00:11.1]} 34. Rxa7 {[%clk 0:01:00.3]} 34... Re7 {[%clk
0:00:11.4]} 35. Kf2 {[%clk 0:00:53]} 35... e3+ {[%clk 0:00:11.5]} 36. Ke2 {[%clk
0:00:53.4]} 36... Re5 {[%clk 0:00:11.4]} 37. Rxb7+ {[%clk 0:00:49.4]} 37... Ke8
{[%clk 0:00:10.4]} 38. Ne6 {[%clk 0:00:23.7]} 38... Rxf5 {[%clk 0:00:09.1]} 39.
Ng7+ {[%clk 0:00:23.4]} 39... Kf8 {[%clk 0:00:09.4]} 40. Nxf5 {[%clk 0:00:24]}
40... Rd2+ {[%clk 0:00:06.6]} 41. Kxe3 {[%clk 0:00:24.3]} 41... Rxg2 {[%clk
0:00:07.3]} 42. c4 {[%clk 0:00:15.9]} 42... Rb2 {[%clk 0:00:05.9]} 43. c5 {[%clk
0:00:14]} 43... Rc2 {[%clk 0:00:06.6]} 44. Kf4 {[%clk 0:00:11.2]} 44... Rxc5
{[%clk 0:00:05.6]} 45. Rb8+ {[%clk 0:00:09.2]} 45... Kf7 {[%clk 0:00:05.3]} 46.
Rb7+ {[%clk 0:00:09.6]} 46... Kf8 {[%clk 0:00:05.5]} 47. Ne3 {[%clk 0:00:06.6]}
47... Rc1 {[%clk 0:00:04.4]} 48. b4 {[%clk 0:00:05.6]} 48... Ke8 {[%clk
0:00:02.9]} 49. b5 {[%clk 0:00:05.6]} 49... Kd8 {[%clk 0:00:02.5]} 50. b6 {[%clk
0:00:06.1]} 50... Kc8 {[%clk 0:00:02.6]} 51. Rf7 {[%clk 0:00:05.6]} 51... Rb1
{[%clk 0:00:01.8]} 52. Rxf6 {[%clk 0:00:05.6]} 1-0

[Event "Early-Titled-Tuesday-Blitz-March-05-2024"]
[Site "Chess.com"]
[Date "2024.03.05"]
[Round "6"]
[White "BogdanDeac"]
[Black "PavelShkapenko"]
[Result "1/2-1/2"]
[WhiteElo "2989"]
[BlackElo "2760"]
[TimeControl "180+1"]
[EndTime "9:09:52 PST"]
[Termination "Game drawn - insufficient material"]

1. d4 {[%clk 0:03:00.9]} 1... d5 {[%clk 0:02:58.1]} 2. c4 {[%clk 0:03:00.5]}
2... dxc4 {[%clk 0:02:58.5]} 3. Nf3 {[%clk 0:03:00]} 3... Nf6 {[%clk 0:02:58.5]}
4. e3 {[%clk 0:03:00.3]} 4... Bg4 {[%clk 0:02:58.2]} 5. Bxc4 {[%clk 0:03:00.4]}
5... e6 {[%clk 0:02:57.7]} 6. h3 {[%clk 0:02:58.7]} 6... Bh5 {[%clk 0:02:57.8]}
7. Nc3 {[%clk 0:02:58.9]} 7... Nc6 {[%clk 0:02:57.7]} 8. Be2 {[%clk 0:02:41.3]}
8... Bd6 {[%clk 0:02:47.5]} 9. O-O {[%clk 0:02:40.9]} 9... O-O {[%clk
0:02:47.1]} 10. Nd2 {[%clk 0:02:40.9]} 10... Bxe2 {[%clk 0:02:40]} 11. Qxe2
{[%clk 0:02:41.8]} 11... e5 {[%clk 0:02:13.2]} 12. d5 {[%clk 0:02:29.7]} 12...
Nb4 {[%clk 0:02:01.4]} 13. e4 {[%clk 0:02:29.3]} 13... Nc2 {[%clk 0:02:01.9]}
14. Rb1 {[%clk 0:02:27.6]} 14... Nd4 {[%clk 0:02:02.3]} 15. Qd3 {[%clk
0:02:23.3]} 15... c6 {[%clk 0:01:47.4]} 16. dxc6 {[%clk 0:02:22.5]} 16... Nxc6
{[%clk 0:01:47.4]} 17. Nf3 {[%clk 0:02:21.6]} 17... Bb4 {[%clk 0:01:27.7]} 18.
Nd5 {[%clk 0:02:18.9]} 18... Nxd5 {[%clk 0:01:08.1]} 19. exd5 {[%clk 0:02:16.3]}
19... Nd4 {[%clk 0:01:07.5]} 20. Nxd4 {[%clk 0:01:56.7]} 20... Qxd5 {[%clk
0:01:07.4]} 21. Qb5 {[%clk 0:01:49.3]} 21... Qxd4 {[%clk 0:01:04.6]} 22. Be3
{[%clk 0:01:49.4]} 22... Qe4 {[%clk 0:00:54.3]} 23. Rbc1 {[%clk 0:01:37.4]}
23... a6 {[%clk 0:00:52.2]} 24. Qb6 {[%clk 0:01:32.5]} 24... Rac8 {[%clk
0:00:44.8]} 25. Rfd1 {[%clk 0:01:23.4]} 25... h6 {[%clk 0:00:37.8]} 26. Kh2
{[%clk 0:00:58.1]} 26... Be7 {[%clk 0:00:34.8]} 27. f3 {[%clk 0:00:32.1]} 27...
Qb4 {[%clk 0:00:34]} 28. Qxb4 {[%clk 0:00:11.2]} 28... Bxb4 {[%clk 0:00:34.2]}
29. a3 {[%clk 0:00:11.7]} 29... Rxc1 {[%clk 0:00:20.8]} 30. Rxc1 {[%clk
0:00:12.1]} 30... Bd6 {[%clk 0:00:21.3]} 31. Rd1 {[%clk 0:00:12.5]} 31... Bb8
{[%clk 0:00:18.9]} 32. Rd7 {[%clk 0:00:11]} 32... e4+ {[%clk 0:00:18.9]} 33. f4
{[%clk 0:00:11.3]} 33... g5 {[%clk 0:00:16.9]} 34. g3 {[%clk 0:00:09]} 34...
gxf4 {[%clk 0:00:17.3]} 35. gxf4 {[%clk 0:00:09.4]} 35... b5 {[%clk 0:00:14.6]}
36. Kg2 {[%clk 0:00:08.6]} 36... Rc8 {[%clk 0:00:14.7]} 37. Rb7 {[%clk
0:00:06.7]} 37... Bd6 {[%clk 0:00:14]} 38. Rb6 {[%clk 0:00:06.4]} 38... Bf8
{[%clk 0:00:13.2]} 39. Rxa6 {[%clk 0:00:05.4]} 39... Rc2+ {[%clk 0:00:13.2]} 40.
Kf1 {[%clk 0:00:05.7]} 40... Rxb2 {[%clk 0:00:13.4]} 41. Ra8 {[%clk 0:00:06.2]}
41... Rb1+ {[%clk 0:00:13.3]} 42. Ke2 {[%clk 0:00:05.9]} 42... Kg7 {[%clk
0:00:13.7]} 43. Bd4+ {[%clk 0:00:05.4]} 43... f6 {[%clk 0:00:14.2]} 44. f5
{[%clk 0:00:05.9]} 44... Rb3 {[%clk 0:00:12]} 45. Ra7+ {[%clk 0:00:05.4]} 45...
Kg8 {[%clk 0:00:12.3]} 46. Bxf6 {[%clk 0:00:05.5]} 46... Rxa3 {[%clk 0:00:12.7]}
47. Rb7 {[%clk 0:00:06.1]} 47... Rxh3 {[%clk 0:00:12.2]} 48. Rxb5 {[%clk
0:00:06]} 48... Rf3 {[%clk 0:00:12.3]} 49. Bd8 {[%clk 0:00:04.8]} 49... Kf7
{[%clk 0:00:12.3]} 50. Re5 {[%clk 0:00:04.6]} 50... Bg7 {[%clk 0:00:11.5]} 51.
Rxe4 {[%clk 0:00:05]} 51... Rxf5 {[%clk 0:00:11.7]} 52. Bc7 {[%clk 0:00:05.6]}
52... Rf6 {[%clk 0:00:11.6]} 53. Rf4 {[%clk 0:00:05.8]} 53... Rxf4 {[%clk
0:00:11.8]} 54. Bxf4 {[%clk 0:00:05.2]} 54... Kg6 {[%clk 0:00:12.5]} 55. Kf3
{[%clk 0:00:06.1]} 55... Kf5 {[%clk 0:00:13]} 56. Bg3 {[%clk 0:00:06.9]} 56...
h5 {[%clk 0:00:13.2]} 57. Kg2 {[%clk 0:00:07.8]} 57... Bf6 {[%clk 0:00:13.9]}
58. Bf2 {[%clk 0:00:08.3]} 58... Kg4 {[%clk 0:00:13.8]} 59. Bg3 {[%clk
0:00:08.6]} 59... h4 {[%clk 0:00:14.4]} 60. Bxh4 {[%clk 0:00:09.1]} 1/2-1/2

[Event "Early-Titled-Tuesday-Blitz-March-05-2024"]
[Site "Chess.com"]
[Date "2024.03.05"]
[Round "6"]
[White "Yan_Dyomin2010"]
[Black "nrvisakh"]
[Result "0-1"]
[WhiteElo "2705"]
[BlackElo "2915"]
[TimeControl "180+1"]
[EndTime "9:09:52 PST"]
[Termination "nrvisakh won by checkmate"]

1. e4 {[%clk 0:03:00.9]} 1... e5 {[%clk 0:02:58]} 2. Nc3 {[%clk 0:02:53.3]} 2...
Nf6 {[%clk 0:02:56.4]} 3. d4 {[%clk 0:02:52.7]} 3... exd4 {[%clk 0:02:55.4]} 4.
Qxd4 {[%clk 0:02:53.6]} 4... Nc6 {[%clk 0:02:54.9]} 5. Qd3 {[%clk 0:02:52.9]}
5... Bb4 {[%clk 0:02:53.6]} 6. Bd2 {[%clk 0:02:51.2]} 6... O-O {[%clk
0:02:50.7]} 7. O-O-O {[%clk 0:02:50.7]} 7... Re8 {[%clk 0:02:49.9]} 8. Nge2
{[%clk 0:02:50]} 8... d6 {[%clk 0:02:44]} 9. Bg5 {[%clk 0:02:49]} 9... h6 {[%clk
0:02:41.4]} 10. Bxf6 {[%clk 0:02:48.1]} 10... Qxf6 {[%clk 0:02:40.5]} 11. Nd5
{[%clk 0:02:47.1]} 11... Qd8 {[%clk 0:02:40.1]} 12. Nxb4 {[%clk 0:02:39.5]}
12... Nxb4 {[%clk 0:02:38.9]} 13. Qd2 {[%clk 0:02:38.9]} 13... Nc6 {[%clk
0:01:31.9]} 14. Nc3 {[%clk 0:02:37.9]} 14... Be6 {[%clk 0:01:30.5]} 15. Kb1
{[%clk 0:02:33.3]} 15... a6 {[%clk 0:01:26.7]} 16. f3 {[%clk 0:02:28.5]} 16...
b5 {[%clk 0:01:25.3]} 17. g4 {[%clk 0:02:28.7]} 17... Ne5 {[%clk 0:01:24.4]} 18.
f4 {[%clk 0:02:15.9]} 18... Nc4 {[%clk 0:01:16.8]} 19. Bxc4 {[%clk 0:02:15.1]}
19... Bxc4 {[%clk 0:01:16.1]} 20. b3 {[%clk 0:02:08.7]} 20... Be6 {[%clk
0:01:13.9]} 21. f5 {[%clk 0:02:07.5]} 21... b4 {[%clk 0:01:12.9]} 22. fxe6
{[%clk 0:02:03]} 22... bxc3 {[%clk 0:01:13.8]} 23. exf7+ {[%clk 0:02:03.4]}
23... Kxf7 {[%clk 0:01:14.4]} 24. Qd5+ {[%clk 0:02:03.7]} 24... Ke7 {[%clk
0:01:08.3]} 25. e5 {[%clk 0:02:02.5]} 25... Rb8 {[%clk 0:00:31.3]} 26. Rhe1
{[%clk 0:01:52.5]} 26... Kd7 {[%clk 0:00:31.6]} 27. e6+ {[%clk 0:01:15]} 27...
Kc8 {[%clk 0:00:30]} 28. Qc6 {[%clk 0:01:15.6]} 28... Re7 {[%clk 0:00:27.1]} 29.
Qxa6+ {[%clk 0:01:15.1]} 29... Rb7 {[%clk 0:00:27.5]} 30. Rd4 {[%clk 0:01:10]}
30... Kb8 {[%clk 0:00:23.5]} 31. Ra4 {[%clk 0:01:05.3]} 31... c5 {[%clk
0:00:21.7]} 32. Qa8+ {[%clk 0:00:57.3]} 32... Kc7 {[%clk 0:00:21.5]} 33. Qxd8+
{[%clk 0:00:57.7]} 33... Kxd8 {[%clk 0:00:20.7]} 34. Ra8+ {[%clk 0:00:58.3]}
34... Kc7 {[%clk 0:00:20.5]} 35. a4 {[%clk 0:00:58.7]} 35... Rb8 {[%clk
0:00:12.7]} 36. Rxb8 {[%clk 0:00:57.4]} 36... Kxb8 {[%clk 0:00:13.3]} 37. Kc1
{[%clk 0:00:58.1]} 37... Kc7 {[%clk 0:00:12.4]} 38. Kd1 {[%clk 0:00:58.1]} 38...
d5 {[%clk 0:00:13]} 39. Re3 {[%clk 0:00:49.5]} 39... d4 {[%clk 0:00:11.4]} 40.
Re4 {[%clk 0:00:48.7]} 40... Kc6 {[%clk 0:00:11.3]} 41. a5 {[%clk 0:00:36.3]}
41... Kb5 {[%clk 0:00:11.1]} 42. Re5 {[%clk 0:00:36.1]} 42... Kc6 {[%clk
0:00:09.4]} 43. a6 {[%clk 0:00:34.2]} 43... Kb6 {[%clk 0:00:08.6]} 44. a7 {[%clk
0:00:29.6]} 44... Kxa7 {[%clk 0:00:08.5]} 45. Rxc5 {[%clk 0:00:29.8]} 45... Rxe6
{[%clk 0:00:09]} 46. Rc7+ {[%clk 0:00:30.3]} 46... Kb6 {[%clk 0:00:09.4]} 47.
Rxg7 {[%clk 0:00:31.2]} 47... Kc5 {[%clk 0:00:07.1]} 48. h4 {[%clk 0:00:31.2]}
48... Re3 {[%clk 0:00:04.7]} 49. Rc7+ {[%clk 0:00:29.2]} 49... Kd5 {[%clk
0:00:04.7]} 50. Rg7 {[%clk 0:00:27.8]} 50... Rh3 {[%clk 0:00:03.9]} 51. h5
{[%clk 0:00:27.2]} 51... Rh1+ {[%clk 0:00:03.1]} 52. Ke2 {[%clk 0:00:27.1]}
52... Rh2+ {[%clk 0:00:03.9]} 53. Kd3 {[%clk 0:00:25.3]} 53... Rd2# {[%clk
0:00:03.8]} 0-1

[Event "Early-Titled-Tuesday-Blitz-March-05-2024"]
[Site "Chess.com"]
[Date "2024.03.05"]
[Round "6"]
[White "kleopl"]
[Black "aridannie"]
[Result "1/2-1/2"]
[WhiteElo "2520"]
[BlackElo "2376"]
[TimeControl "180+1"]
[EndTime "9:09:53 PST"]
[Termination "Game drawn - insufficient material"]

1. e4 {[%clk 0:03:00.9]} 1... c5 {[%clk 0:02:49.5]} 2. Nf3 {[%clk 0:03:00.3]}
2... Nc6 {[%clk 0:02:48.8]} 3. d4 {[%clk 0:02:59.2]} 3... cxd4 {[%clk
0:02:48.6]} 4. Nxd4 {[%clk 0:03:00.1]} 4... e5 {[%clk 0:02:48.7]} 5. Nb5 {[%clk
0:02:59.5]} 5... d6 {[%clk 0:02:48.5]} 6. c4 {[%clk 0:02:55.7]} 6... Be7 {[%clk
0:02:48.1]} 7. Be2 {[%clk 0:02:54.8]} 7... Nf6 {[%clk 0:02:45.1]} 8. N5c3 {[%clk
0:02:54]} 8... O-O {[%clk 0:02:44.5]} 9. O-O {[%clk 0:02:54.1]} 9... Nd7 {[%clk
0:02:42]} 10. Nd5 {[%clk 0:02:46.7]} 10... Nc5 {[%clk 0:02:29.3]} 11. Nbc3
{[%clk 0:02:45.3]} 11... Be6 {[%clk 0:02:23.1]} 12. Rb1 {[%clk 0:02:15.3]} 12...
a5 {[%clk 0:02:20.5]} 13. b3 {[%clk 0:02:12.4]} 13... Bg5 {[%clk 0:02:16.7]} 14.
Ba3 {[%clk 0:02:07.2]} 14... Nd4 {[%clk 0:02:12]} 15. g3 {[%clk 0:02:03.3]}
15... f5 {[%clk 0:02:04.9]} 16. f4 {[%clk 0:02:01.8]} 16... Bf6 {[%clk
0:01:59.7]} 17. Bf3 {[%clk 0:01:51.7]} 17... Bxd5 {[%clk 0:01:57.6]} 18. cxd5
{[%clk 0:01:22.7]} 18... Nxf3+ {[%clk 0:01:53.4]} 19. Qxf3 {[%clk 0:01:22.1]}
19... exf4 {[%clk 0:01:43.4]} 20. Bxc5 {[%clk 0:01:18.4]} 20... Bxc3 {[%clk
0:01:24.7]} 21. Qxc3 {[%clk 0:01:09.3]} 21... dxc5 {[%clk 0:01:24.7]} 22. Rxf4
{[%clk 0:01:01.4]} 22... fxe4 {[%clk 0:01:24.7]} 23. Qxc5 {[%clk 0:00:50.3]}
23... Rxf4 {[%clk 0:01:21.6]} 24. gxf4 {[%clk 0:00:51.2]} 24... Rc8 {[%clk
0:01:20]} 25. Qd4 {[%clk 0:00:45]} 25... Qe8 {[%clk 0:00:48.1]} 26. Re1 {[%clk
0:00:37.8]} 26... Qg6+ {[%clk 0:00:42.7]} 27. Kh1 {[%clk 0:00:37.8]} 27... Rc2
{[%clk 0:00:29.8]} 28. Qxe4 {[%clk 0:00:30.1]} 28... Qxe4+ {[%clk 0:00:29.2]}
29. Rxe4 {[%clk 0:00:31]} 29... Rd2 {[%clk 0:00:24.4]} 30. Re5 {[%clk
0:00:24.9]} 30... Kf7 {[%clk 0:00:22.5]} 31. a4 {[%clk 0:00:21.9]} 31... Rd3
{[%clk 0:00:19.3]} 32. Kg2 {[%clk 0:00:20.1]} 32... b6 {[%clk 0:00:17.4]} 33.
Kf2 {[%clk 0:00:18]} 33... Rxb3 {[%clk 0:00:17.3]} 34. Ke2 {[%clk 0:00:18.4]}
34... Rb2+ {[%clk 0:00:15.5]} 35. Ke3 {[%clk 0:00:18.4]} 35... Rxh2 {[%clk
0:00:12.5]} 36. d6 {[%clk 0:00:18.7]} 36... Rh6 {[%clk 0:00:11.1]} 37. Re7+
{[%clk 0:00:16]} 37... Kf8 {[%clk 0:00:10.3]} 38. Rd7 {[%clk 0:00:13.1]} 38...
Ke8 {[%clk 0:00:09.7]} 39. Rxg7 {[%clk 0:00:08.9]} 39... Rxd6 {[%clk 0:00:09.7]}
40. Rxh7 {[%clk 0:00:09]} 40... Rd1 {[%clk 0:00:07.7]} 41. Ke4 {[%clk
0:00:01.1]} 41... Ra1 {[%clk 0:00:07.1]} 42. Ke5 {[%clk 0:00:01.8]} 42... Rxa4
{[%clk 0:00:05.5]} 43. f5 {[%clk 0:00:02.7]} 43... Ra1 {[%clk 0:00:04.3]} 44.
Ke6 {[%clk 0:00:03]} 44... Re1+ {[%clk 0:00:03.7]} 45. Kd6 {[%clk 0:00:03.4]}
45... a4 {[%clk 0:00:03]} 46. Kc6 {[%clk 0:00:03.5]} 46... a3 {[%clk 0:00:02.6]}
47. Ra7 {[%clk 0:00:03.7]} 47... Re3 {[%clk 0:00:01.6]} 48. Kxb6 {[%clk
0:00:03.8]} 48... Kf8 {[%clk 0:00:01.6]} 49. Kc5 {[%clk 0:00:03.8]} 49... Rf3
{[%clk 0:00:02]} 50. Kd4 {[%clk 0:00:03.8]} 50... a2 {[%clk 0:00:02.3]} 51. Rxa2
{[%clk 0:00:03.7]} 51... Rxf5 {[%clk 0:00:02.3]} 52. Ke4 {[%clk 0:00:04.2]}
52... Rf7 {[%clk 0:00:02.8]} 53. Ke5 {[%clk 0:00:04.7]} 53... Ke7 {[%clk
0:00:03]} 54. Ra7+ {[%clk 0:00:04.1]} 54... Kf8 {[%clk 0:00:03.3]} 55. Rxf7+
{[%clk 0:00:04.6]} 55... Kxf7 {[%clk 0:00:03.5]} 1/2-1/2

[Event "Early-Titled-Tuesday-Blitz-March-05-2024"]
[Site "Chess.com"]
[Date "2024.03.05"]
[Round "6"]
[White "Indianlad"]
[Black "Firouzja2003"]
[Result "0-1"]
[WhiteElo "3022"]
[BlackElo "3229"]
[TimeControl "180+1"]
[EndTime "9:09:54 PST"]
[Termination "Firouzja2003 won by resignation"]

1. Nf3 {[%clk 0:02:52.9]} 1... Nf6 {[%clk 0:03:00.1]} 2. g3 {[%clk 0:02:52.6]}
2... g6 {[%clk 0:03:00.4]} 3. Bg2 {[%clk 0:02:53.1]} 3... Bg7 {[%clk 0:03:01.2]}
4. O-O {[%clk 0:02:53.7]} 4... O-O {[%clk 0:03:02]} 5. c4 {[%clk 0:02:54]} 5...
d6 {[%clk 0:03:02.6]} 6. Nc3 {[%clk 0:02:53.5]} 6... e5 {[%clk 0:03:02.3]} 7. d3
{[%clk 0:02:53.6]} 7... c6 {[%clk 0:03:00.1]} 8. Rb1 {[%clk 0:02:49.8]} 8... Re8
{[%clk 0:03:00.1]} 9. Bg5 {[%clk 0:02:48.3]} 9... Nbd7 {[%clk 0:02:51.6]} 10.
Nd2 {[%clk 0:02:47.9]} 10... h6 {[%clk 0:02:50.9]} 11. Bxf6 {[%clk 0:02:47.7]}
11... Nxf6 {[%clk 0:02:51.8]} 12. b4 {[%clk 0:02:48]} 12... d5 {[%clk
0:02:50.8]} 13. b5 {[%clk 0:02:46.9]} 13... Be6 {[%clk 0:02:50.9]} 14. bxc6
{[%clk 0:02:46]} 14... bxc6 {[%clk 0:02:51.8]} 15. Qa4 {[%clk 0:02:46.2]} 15...
Qd6 {[%clk 0:02:45.5]} 16. Rfc1 {[%clk 0:02:43]} 16... Rec8 {[%clk 0:02:40.6]}
17. Nb3 {[%clk 0:02:18.4]} 17... h5 {[%clk 0:02:36.5]} 18. cxd5 {[%clk
0:02:16.9]} 18... cxd5 {[%clk 0:02:36.6]} 19. Nb5 {[%clk 0:02:17.2]} 19... Qb6
{[%clk 0:02:31.6]} 20. Qa5 {[%clk 0:01:46]} 20... Bh6 {[%clk 0:02:18.1]} 21.
Rxc8+ {[%clk 0:01:44.9]} 21... Rxc8 {[%clk 0:02:05.7]} 22. Nxa7 {[%clk
0:01:44.1]} 22... Qxa5 {[%clk 0:02:05.6]} 23. Nxa5 {[%clk 0:01:44.7]} 23... Rc2
{[%clk 0:02:06.5]} 24. Bf1 {[%clk 0:01:37.6]} 24... Rxa2 {[%clk 0:02:03.8]} 25.
N7c6 {[%clk 0:01:38.3]} 25... e4 {[%clk 0:02:02]} 26. dxe4 {[%clk 0:01:34.5]}
26... dxe4 {[%clk 0:01:40.2]} 27. Nb3 {[%clk 0:01:34]} 27... e3 {[%clk
0:01:34.9]} 28. f3 {[%clk 0:01:31.3]} 28... Bc4 {[%clk 0:01:32.3]} 29. Nbd4
{[%clk 0:01:30.3]} 29... Rd2 {[%clk 0:01:28]} 30. Rb4 {[%clk 0:01:24.6]} 30...
Ba2 {[%clk 0:01:24.5]} 31. Nb3 {[%clk 0:01:05.2]} 31... Bf8 {[%clk 0:01:16.3]}
32. Rb8 {[%clk 0:00:58.8]} 32... Kg7 {[%clk 0:01:06.7]} 33. Rb7 {[%clk
0:00:35.3]} 33... Nd5 {[%clk 0:00:56.2]} 34. Ne5 {[%clk 0:00:34.5]} 34... Rb2
{[%clk 0:00:29.3]} 35. Na5 {[%clk 0:00:25.2]} 35... Rxb7 {[%clk 0:00:21.6]} 36.
Nxb7 {[%clk 0:00:26.1]} 36... Nc3 {[%clk 0:00:21]} 37. Na5 {[%clk 0:00:25.7]}
37... Bd6 {[%clk 0:00:19.8]} 38. Nac4 {[%clk 0:00:25.9]} 38... Bc7 {[%clk
0:00:18.4]} 39. f4 {[%clk 0:00:25]} 39... f6 {[%clk 0:00:18.9]} 40. Nxg6 {[%clk
0:00:15.7]} 40... Bxc4 {[%clk 0:00:17.3]} 41. Nh4 {[%clk 0:00:16.3]} 41... Bb6
{[%clk 0:00:16.3]} 42. Kg2 {[%clk 0:00:15.7]} 42... Nxe2 {[%clk 0:00:13.3]} 43.
Nf5+ {[%clk 0:00:15.5]} 43... Kf8 {[%clk 0:00:13.7]} 44. Nd6 {[%clk 0:00:14.4]}
44... Bd5+ {[%clk 0:00:13.4]} 45. Kh3 {[%clk 0:00:12.3]} 45... Ng1+ {[%clk
0:00:13.8]} 46. Kh4 {[%clk 0:00:12.9]} 46... Bf3 {[%clk 0:00:10.7]} 47. Nc4
{[%clk 0:00:11.4]} 47... Bd4 {[%clk 0:00:08.2]} 48. Nxe3 {[%clk 0:00:10]} 48...
Bxe3 {[%clk 0:00:08.4]} 49. h3 {[%clk 0:00:09.9]} 49... Kg7 {[%clk 0:00:07.7]}
50. Bb5 {[%clk 0:00:08]} 50... Kh6 {[%clk 0:00:07.6]} 51. Be8 {[%clk 0:00:07.5]}
51... Bd1 {[%clk 0:00:07.5]} 0-1